Workbook

Sheet от 3 до 7 лет
A1: Утверждаю | H1: Согласовано
A2: Директор ООО"АБК - Пэймент" | H2: Руководитель дошкольной образовательной
A3: Рахматуллин Р.Р. | H3: организации | I3: Сидорова С.А.
C8: Примерное 10-дневное меню
C9: для организации питания детей в дошкольных учреждениях
C10: с 12 - часовым пребыванием от 3 до 7 лет
A12: День 1 - ый
A13: Наименование блюд и | C13: Масса | D13: Кол - во | E13: Кол - во | F13: Пищевые вещества | I13: Энергетическая | J13: Витамин | K13: Сборник рецептур
A14: продуктов | C14: порции | D14: (в гр ) | E14: (в гр ) | I14: ценность
D15: брутто | E15: нетто | F15: белки | G15: жиры | H15: угл-ды | I15: Ккал | J15: С
B16: ЗАВТРАК
A17: Каша "Дружба" молочная с маслом сливочным | C17: 200/5 | F17: 5.20 | G17: 7.10 | H17: 23.20 | I17: 177.50 | J17: 0.21 | K17: ТТК №7Д
B18: Крупа рисовая | D18: 15.00 | E18: 15.00
B19: Крупа пшенная | D19: 11.00 | E19: 11.00
B20: Молоко | D20: 100.00 | E20: 100.00
B21: Вода | D21: 76.00 | E21: 76.00
B22: Сахар | D22: 5.00 | E22: 5.00
B23: соль иодированная | D23: 1.00 | E23: 1.00
B24: Масло сливочное | D24: 5.00 | E24: 5.00
A25: Кофейный напиток с молоком | C25: 180 | F25: 2.85 | G25: 2.41 | H25: 14.36 | I25: 91.00 | J25: 0.19 | K25: №395 Дели2010
B26: Кофейный напиток | D26: 2.50 | E26: 2.50
B27: Сахар | D27: 10.00 | E27: 10.00
B28: Молоко | D28: 90.00 | E28: 90.00
B29: Вода | D29: 108.00 | E29: 108.00
A30: Бутерброд с маслом сливочным | C30: 30/5 | F30: 2.30 | G30: 4.50 | H30: 15.40 | I30: 111.00 | K30: №1 Дели2010
B31: Батон нарезной | D31: 30.00 | E31: 30.00
B32: Масло сливочное | D32: 5.00 | E32: 5.00
A33: Итого: | C33: 420 | F33: =F17+F25+F30 -> 10.35 | G33: =G17+G25+G30 -> 14.01 | H33: 52.96 | I33: 379.50 | J33: 0.40
B34: 2 - ой ЗАВТРАК
A35: Сок (или нектар) | C35: 200 | D35: 200 | E35: 200 | F35: 1.00 | G35: 0.00 | H35: 20.20 | I35: 85.34 | J35: 4.00 | K35: №418 сб дошк 2016
A36: в ассортименте
A37: Итого: | C37: 200 | F37: =F35+F154 -> 1.40 | G37: =G35+G154 -> 0.40 | H37: =H35+H154 -> 30.00 | I37: =I35+I154 -> 129.34 | J37: =J35+J154 -> 14.00
B38: ОБЕД
A39: Салат из отварной моркови с сахаром | C39: 60 | F39: 0.75 | G39: 0.06 | H39: 6.97 | I39: 31.40 | K39: №42 СБ дошк 2016
B40: морковь | D40: 78.30 | E40: 58.00
B41: сахар | D41: 3.00 | E41: 3.00
A42: Суп со звездочами с картофелем с мясными фрикадельками | C42: 200/15 | F42: 5.01 | G42: 22.51 | H42: 13.83 | I42: 109.39 | J42: 5.28 | K42: №140,сбшк2004
B43: говядина б/к (котлетное мясо) | D43: 17.85 | E43: 17.1
B44: Лук репчатый | D44: 1.79 | E44: 1.5
B45: Яйцо | D45: 1.44 | E45: 1.2
B46: Вода для фарша | D46: 1.5 | E46: 1.5
B47: соль иодированная | D47: 1.2 | E47: 1.2
B48: Масса полуфабриката | E48: 21.5
B49: масса готовых фрикаделек | E49: 15
B50: Картофель | D50: 79.80 | E50: 60.00
B51: Морковь | D51: 10.00 | E51: 8.00
B52: Лук репчатый | D52: 9.52 | E52: 8.00
B53: суповая засыпка (звездочки) | D53: 8.00 | E53: 8.00
B54: Масло растительное | D54: 4.00 | E54: 4.00
B55: соль иодированная | D55: 1.20 | E55: 1.20
B56: Вода | D56: 152.00 | E56: 152.00
A57: Котлеты рубленые из говядины | C57: 70 | F57: 10.43 | G57: 7.70 | H57: 10.19 | I57: 151.38 | K57: СБ дошкольн. №299, 2016
B58: говядина б/к (котлетное мясо) | D58: 51.16 | E58: 49
B59: Лук репчатый | D59: 14.64 | E59: 12.3
B60: Хлеб пшеничный | D60: 11 | E60: 11
B61: Вода | D61: 14.7 | E61: 14.7
B62: Сухари панировочные | D62: 4.00 | E62: 4.00
B63: соль иодированная | D63: 0.7 | E63: 0.7
B64: масса полуфабриката | E64: 75.3
B65: масло растительное | D65: 1 | E65: 1
A66: Капуста тушеная | C66: 150 | F66: 3.30 | G66: 4.90 | H66: 14.10 | I66: 114.60 | J66: 24.70 | K66: №354 сбдошк2016
B67: Капуста свежая | D67: 215.00 | E67: 172.00
B68: Лук репчатый | D68: 7.14 | E68: 6.00
B69: Морковь | D69: 3.75 | E69: 3.00
B70: Мука пшеничная | D70: 1.80 | E70: 1.80
B71: Масло растительное | D71: 5.25 | E71: 5.25
B72: Сахар | D72: 4.50 | E72: 4.50
B73: соль иодированная | D73: 1.00 | E73: 1.00
A74: Компот из сухофруктов | C74: 180 | F74: 0.40 | G74: 0.02 | H74: 25.00 | I74: 101.70 | J74: 0.36 | K74: №394 сб дошк 2016
B75: сухофрукты | D75: 18.00 | E75: 18.00
B76: масса вареных сухофруктов | E76: 45.00
B77: Сахар | D77: 10.00 | E77: 10.00
B78: Вода | D78: 183.00 | E78: 183.00
A79: Хлеб ржаной | C79: 45 | D79: 45.00 | E79: 45.00 | F79: 2.98 | G79: 0.54 | H79: 17.82 | I79: 89.10 | K79: табл 6 стр 144,Дели + 2012
A80: Итого: | C80: 720 | F80: =F39+F42+F57+F66+F74+F79 -> 22.87 | G80: =G39+G42+G57+G66+G74+G79 -> 35.73 | H80: 87.91 | I80: 597.57 | J80: 30.34
B81: УЖИН
A82: Булочка дорожная | C82: 50 | F82: 3.39 | G82: 6.98 | H82: 26.07 | I82: 181.00 | K82: №453 сб дошк2016
B83: Мука пшеничная | D83: 30.50 | E83: 30.00
B84: мука пшеничная на подпыл | D84: 1.00 | E84: 1.00
B85: Сахар | D85: 6.00 | E85: 6.00
B86: Масло сливочное | D86: 6.50 | E86: 6.50
B87: соль иодированная | D87: 0.30 | E87: 0.30
B88: дрожжи сухие | D88: 0.20 | E88: 0.20
B89: вода | D89: 15.30 | E89: 15.30
B90: масса полуфабриката | E90: 57.00
B91: для крошки:
B92: мука пшеничная | D92: 1.20 | E92: 1.20
B93: масло сливочное | D93: 1.00 | E93: 1.00
B94: масса крошки | E94: 2.00
B95: масло растительное для смазки изделй | D95: 1.00 | E95: 1.00
A96: Кисломолочный напиток | C96: 180/5 | F96: 5.22 | G96: 4.50 | H96: 12.19 | I96: 109.95 | J96: 1.26 | K96: №420 СБ дошк 2016
A97: (Кефир,ряженка,катык,напиток ацидофильный) | B97: кисломолочный напиток | D97: 185.00 | E97: 180.00
B98: сахар | D98: 5.00 | E98: 5.00
C99: 235 | F99: ='[1]от 3 до 7 лет'!F77+F96 -> 8.61 | G99: ='[1]от 3 до 7 лет'!G77+G96 -> 11.48 | H99: ='[1]от 3 до 7 лет'!H77+H96 -> 38.26 | I99: ='[1]от 3 до 7 лет'!I77+I96 -> 290.95 | J99: ='[1]от 3 до 7 лет'!J77+J96 -> 1.26
B100: УЖИН
A101: Пудинг рыбный | C101: 80/30 | F101: 14.60 | G101: 9.00 | H101: 10.80 | I101: 182.00 | K101: №286 СБ дошк 2016
B102: рыба (минтай с/м БГ) | D102: 84 | E102: 67
B103: масса отварной рыбы | E103: 53
B104: Хлеб пшеничный | D104: 11 | E104: 11
B105: яйцо | D105: 8.4 | E105: 7
B106: молоко | D106: 16 | E106: 16
B107: масло сливочное | D107: 3 | E107: 3
B108: соль иодированная | D108: 0.5 | E108: 0.5
B109: Масло растительное | D109: 1.3 | E109: 1.3
B110: Соус молочный
B111: молоко | D111: 15 | E111: 15
B112: масло сливочное | D112: 1.65 | E112: 1.65
B113: Мука пшеничная | D113: 1.65 | E113: 1.65
B114: Вода | D114: 15 | E114: 15
B115: Сахар | D115: 0.3 | E115: 0.3
B116: соль иодированная | D116: 0.2 | E116: 0.2
B117: масса соуса | E117: 30
A118: Пюре Картофельное | C118: 140 | F118: 2.86 | G118: 4.48 | H118: 19.07 | I118: 128.10 | J118: 0.23 | K118: № 339 СБ дошк 2016
B119: Картофель | D119: 159.60 | E119: 119.70
B120: Молоко | D120: 22.12 | E120: 21.00
B121: Масло сливочное | D121: 5.00 | E121: 5.00
B122: соль иодированная | D122: 0.52 | E122: 0.52
A123: Чай с сахаром | C123: 180/10 | F123: 0.10 | G123: 0.02 | H123: 10.00 | I123: 40.00 | K123: № 392 Дели 2010
B124: чай весовой | D124: 0.45 | E124: 0.45
B125: сахар | D125: 10.00 | E125: 10.00
B126: Вода | D126: 180.00 | E126: 180.00
A127: Хлеб пшеничный | C127: 25 | D127: 25.00 | E127: 25.00 | F127: 1.90 | G127: 0.20 | H127: 12.30 | I127: 58.75 | J127: 0.00 | K127: табл 6 стр 134,Дели + 2012
A128: Итого: | C128: 465 | F128: =F101+F118+F123+F127 -> 19.46 | G128: =G101+G118+G123+G127 -> 13.70 | H128: 52.17 | I128: 408.85 | J128: 0.23
A129: ВСЕГО: | C129: =C33+C37+C80+C99+C128 -> 2040.00 | F129: =F33+F37+F80+F99+F128 -> 62.69 | G129: =G33+G37+G80+G99+G128 -> 75.32 | H129: =H33+H37+H80+H99+H128 -> 261.30 | I129: =I33+I37+I80+I99+I128 -> 1806.21 | J129: =J33+J37+J80+J99+J128 -> 46.23
A131: День 2- ой
A132: Наименование блюд и | C132: Масса | D132: Кол - во | E132: Кол - во | F132: Пищевые вещества | I132: Энергетическая | J132: Витамин | K132: Сборник
A133: продуктов | C133: порции | D133: (в гр ) | E133: (в гр ) | I133: ценность | K133: рецептур
D134: брутто | E134: нетто | F134: белки | G134: жиры | H134: угл-ды | I134: Ккал | J134: С
B135: ЗАВТРАК
A136: Каша полбяная молочная с маслом сливочным | C136: 200/5 | F136: 5.89 | G136: 5.42 | H136: 25.84 | I136: 176.00 | J136: 0.21 | K136: ТТК №1Д
B137: крупа полбяная | D137: 25.00 | E137: 25.00
B138: Молоко | D138: 100.00 | E138: 100.00
B139: вода | D139: 76.00 | E139: 76.00
B140: Сахар | D140: 5.00 | E140: 5.00
B141: соль иодированная | D141: 1.00 | E141: 1.00
B142: Масло сливочное | D142: 5.00 | E142: 5.00
A143: Какао с молоком | C143: 180 | F143: 3.67 | G143: 3.19 | H143: 15.82 | I143: 107.00 | J143: 0.39 | K143: №397 Дели2010
B144: Какао-порошок | D144: 2.00 | E144: 2.00
B145: Сахар | D145: 10.00 | E145: 10.00
B146: Молоко | D146: 110.00 | E146: 110.00
B147: Вода | D147: 80.00 | E147: 80.00
A148: Бутерброд с сыром, маслом сливочным | C148: 30/10/5 | F148: 5.59 | G148: 8.00 | H148: 15.40 | I148: 156.40 | J148: 0.21 | K148: №3 сб дошк2016
B149: Батон нарезной | D149: 30.00 | E149: 30.00
B150: Сыр | D150: 10.20 | E150: 10.00
B151: Масло сливочное | D151: 5.00 | E151: 5.00
A152: Итого: | C152: 430 | F152: =F136+F143+F148 -> 15.15 | G152: =G136+G143+G148 -> 16.61 | H152: 57.06 | I152: 439.40 | J152: 0.81
B153: 2 - ой ЗАВТРАК
A154: Фрукты свежие | C154: 100 | D154: 114 | E154: 100 | F154: 0.40 | G154: 0.40 | H154: 9.80 | I154: 44.00 | J154: 10.00 | K154: №386 СБ
A155: (яблоки,или апельсин, или банан,или мандарин ) | K155: дошк.2016
A156: Итого: | C156: 100 | F156: =F154 -> 0.40 | G156: =G154 -> 0.40 | H156: 9.80 | I156: 44.00 | J156: 10.00
B157: ОБЕД
A158: Салат из картофеля с солеными огурцами | C158: 60 | F158: 0.82 | G158: 3.13 | H158: 5.14 | I158: 51.96 | J158: 7.20 | K158: №23 сб дошк2016
B159: огурцы соленые | D159: 32.76 | E159: 18.00
B160: картофель | D160: 32.90 | E160: 24.00
B161: морковь | D161: 15.36 | E161: 12.00
B162: лук репчатый | D162: 3.60 | E162: 3.00
B163: масло растительное | D163: 3.00 | E163: 3.00
A164: Борщ со свежей капустой, картофелем на м/б,со сметаной | C164: 200/7 | F164: 1.50 | G164: 3.90 | H164: 9.50 | I164: 79.00 | J164: 6.36 | K164: №110, сб шк2004
B165: Капуста свежая | D165: 20.00 | E165: 16.00
B166: Картофель | D166: 21.28 | E166: 16.00
B167: Морковь | D167: 12.50 | E167: 10.00
B168: Лук репчатый | D168: 9.52 | E168: 8.00
B169: Свекла | D169: 41.00 | E169: 32.00
B170: Сахар | D170: 2.40 | E170: 2.40
B171: Томат-паста | D171: 1.00 | E171: 1.00
B172: Масло растительное | D172: 4.00 | E172: 4.00
B173: соль иодированная | D173: 2.00 | E173: 2.00
B174: Бульон | D174: 160.00 | E174: 160.00
B175: Сметана | D175: 7.00 | E175: 7.00
A176: Плов из отварной говядины | C176: 200 | F176: 15.60 | G176: 15.00 | H176: 28.00 | I176: 309.50 | J176: 0.65 | K176: №443,сбшк2004
B177: говядина (лопатка б/к) | D177: 52.00 | E177: 52.0
B178: масса отварного мяса | E178: 32.0
B179: масло сливочное | D179: 8.0 | E179: 8.0
B180: Лук репчатый | D180: 11.9 | E180: 10.00
B181: Морковь | D181: 16.3 | E181: 13.00
B182: Крупа рисовая | D182: 55.0 | E182: 55.0
B183: вода | D183: 86.0 | E183: 86.0
B184: соль иодированная | D184: 2.0 | E184: 2.0
B185: масса гарнира | E185: 168.0
A186: Кисель | C186: 180 | H186: 18.00 | I186: 72.00 | K186: № 648, сб шк2004
B187: Кисель-концентрат | D187: 21.00 | E187: 21.00
B188: Сахар | D188: 9.00 | E188: 9.00
B189: вода | D189: 180.00 | E189: 180.00
A190: Хлеб пшеничный | C190: 25 | D190: 25.00 | E190: 25.00 | F190: 1.90 | G190: 0.20 | H190: 12.30 | I190: 58.75 | J190: 0.00 | K190: табл 6 стр 134,Дели + 2012
A191: Хлеб ржаной | C191: 45 | D191: 45.00 | E191: 45.00 | F191: 2.98 | G191: 0.54 | H191: 17.82 | I191: 89.10 | K191: табл 6 стр 144,Дели + 2012
A192: Итого: | C192: 717 | F192: =F158+F164+F176+F186+F190+F191 -> 22.80 | G192: =G158+G164+G176+G186+G190+G191 -> 22.77 | H192: =H158+H164+H176+H186+H190+H191 -> 90.76 | I192: =I158+I164+I176+I186+I190+I191 -> 660.31 | J192: =J158+J164+J176+J186+J190+J191 -> 14.21
B193: ПОЛДНИК
A194: Кисломолочный напиток | C194: 180 | F194: 5.22 | G194: 4.50 | H194: 7.56 | I194: 92.00 | J194: 0.54 | K194: №420 СБ дошк 2016
A195: (Кефир,ряженка,катык,напиток ацидофильный) | B195: кисломолочный напиток | D195: 185 | E195: 180
A196: Итого: | C196: 180 | F196: =F194 -> 5.22 | G196: =G194 -> 4.50 | H196: 7.56 | I196: 92.00 | J196: 0.54
B197: УЖИН
A198: Запеканка творожная с повидлом | C198: 120/30 | F198: 21.17 | G198: 14.47 | H198: 40.09 | I198: 372.60 | J198: 0.44 | K198: №251, сбдошк 2016
B199: Творог | D199: 112.20 | E199: 110.00
B200: Крупа манная | D200: 7.20 | E200: 7.20
B201: Яйцо | D201: 6.00 | E201: 5.00
B202: Сахар | D202: 9.60 | E202: 9.60
B203: Сметана | D203: 4.80 | E203: 4.80
B204: Масло сливочное | D204: 4.80 | E204: 4.80
B205: Сухари панировочные | D205: 4.80 | E205: 4.80
B206: соль иодированная | D206: 0.60 | E206: 0.60
... 894 more rows

Sheet от 1года до 3 лет
A1: Утверждаю | H1: Согласовано
A2: Директор ООО"АБК - Пэймент" | H2: Руководитель дошкольной образовательной
A3: Рахматуллин Р.Р. | H3: организации
E6: Примерное 10-дневное меню
E7: для организации питания детей в дошкольных учреждениях
E8: с 12 - часовым пребыванием от 1 года до 3 лет
A10: День 1 - ый
A11: Наименование блюд и | C11: Масса | D11: Кол - во | E11: Кол - во | F11: Пищевые вещества | I11: Энергетическая | J11: витамин | K11: Сборник
A12: продуктов | C12: порции | D12: (в гр ) | E12: (в гр ) | I12: ценность | K12: рецептур
D13: брутто | E13: нетто | F13: белки | G13: жиры | H13: угл-ды | I13: Ккал | J13: С
A15: Каша "Дружба" молочная с маслом сливочным | C15: 150/4 | F15: 3.60 | G15: 5.30 | H15: 17.00 | I15: 130.00 | J15: 0.21 | K15: ТТК №7Д
B16: Крупа рисовая | D16: 11 | E16: 11
B17: Крупа пшенная | D17: 8 | E17: 8
B18: Молоко | D18: 80 | E18: 80
B19: Вода | D19: 52 | E19: 52
B20: Сахар | D20: 4 | E20: 4
B21: соль иодированная | D21: 0.8 | E21: 0.8
B22: Масло сливочное | D22: 4 | E22: 4
A23: Кофейный напиток с молоком | C23: 165 | F23: 2.57 | G23: 2.2 | H23: 11.69 | I23: 77 | J23: 0.16 | K23: №395Дели2010
B24: Кофейный напиток | D24: 2 | E24: 2
B25: Сахар | D25: 7.7 | E25: 7.7
B26: Молоко | D26: 75 | E26: 75
B27: вода | D27: 106 | E27: 106
A28: Бутерброд с маслом сливочным | C28: 25/5 | F28: 1.9 | G28: 4.4 | H28: 13 | I28: 99 | K28: №1 Дели2010
B29: Батон нарезной | D29: 25 | E29: 25
B30: Масло сливочное | D30: 5 | E30: 5
A31: Итого: | C31: 349 | F31: =F15+F23+F28 -> 8.07 | G31: =G15+G23+G28 -> 11.90 | H31: 41.69 | I31: 306.00 | J31: 0.37
B32: 2 - ой ЗАВТРАК
A33: Сок | C33: 200 | D33: 200 | E33: 200 | F33: 1.00 | G33: 0.00 | H33: 20.20 | I33: 85.34 | J33: 4.00 | K33: №418 сб дошк 2016
A34: в ассортименте в инд.упаковке
A35: Итого: | C35: 200 | F35: =F33 -> 1.00 | G35: =G33 -> 0.00 | H35: 20.20 | I35: 85.34 | J35: 4.00
B36: ОБЕД
A37: Салат из отварной моркови с сахаром | C37: 40 | F37: 0.50 | G37: 0.04 | H37: 4.65 | I37: 20.93 | K37: №42 СБ дошк 2016
B38: морковь | D38: 51.30 | E38: 38.00
B39: сахар | D39: 2.00 | E39: 2.00
A40: Суп со звездочами с картофелем с мясными фрикадельками | C40: 150/10 | F40: 5.01 | G40: 22.51 | H40: 13.83 | I40: 109.39 | J40: 5.28 | K40: 140сбшк2004
B41: говядина б/к (котлетное мясо) | D41: 11.9 | E41: 114
B42: Лук репчатый | D42: 1.19 | E42: 1
B43: Яйцо | D43: 0.96 | E43: 0.8
B44: Вода для фарша | D44: 1 | E44: 1
B45: соль иодированная | D45: 1 | E45: 1
B46: Масса полуфабриката | E46: 14.3
B47: масса готовых фрикаделек | E47: 10
B48: Картофель | D48: 59.90 | E48: 45.00
B49: Морковь | D49: 7.50 | E49: 6.00
B50: Лук репчатый | D50: 7.14 | E50: 6.00
B51: суповая засыпка (звездочки) | D51: 6.00 | E51: 6.00
B52: Масло растительное | D52: 3.00 | E52: 3.00
B53: соль иодированная | D53: 1.00 | E53: 1.00
B54: Вода | D54: 114.00 | E54: 114.00
A55: Котлеты рубленные из говядины | C55: 50 | F55: 7.45 | G55: 5.50 | H55: 7.28 | I55: 108.13 | K55: СБ дошкольн. №299, 2016
B56: говядина б/к (котлетное мясо) | D56: 36.57 | E56: 35
B57: лук репчатый | D57: 10.4 | E57: 8.75
B58: Хлеб пшеничный | D58: 8.13 | E58: 8.13
B59: Вода | D59: 5.2 | E59: 5.2
B60: сухари панировочные | D60: 2.8 | E60: 2.8
B61: соль иодированная | D61: 0.4 | E61: 0.4
B62: масса полуфабриката | E62: 61.9
B63: Масло растительное | D63: 0.60 | E63: 0.60
A64: Капуста тушеная | C64: 120 | F64: 2.48 | G64: 3.88 | H64: 11.31 | I64: 90.12 | J64: 20.59 | K64: №354 сбдошк2016
B65: Капуста свежая | D65: 172 | E65: 137.6
B66: Лук репчатый | D66: 5.71 | E66: 4.8
B67: Морковь | D67: 3 | E67: 2.4
B68: Мука пшеничная | D68: 1.44 | E68: 1.44
B69: Масло растительное | D69: 4.2 | E69: 4.2
B70: Сахар | D70: 3.6 | E70: 3.6
B71: соль иодированная | D71: 0.8 | E71: 0.8
A72: Компот из сухофруктов | C72: 150 | F72: 0.33 | G72: 0.02 | H72: 20.83 | I72: 84.75 | J72: 0.24 | K72: №394 сб дошк2016
B73: сухофрукты | D73: 15 | E73: 15
B74: масса вареных сухофруктов | E74: 37.5
B75: вода | D75: 153 | E75: 153
B76: Сахар | D76: 8 | E76: 8
A77: Хлеб ржаной | C77: 40 | D77: 40 | E77: 40 | F77: 2.64 | G77: 0.48 | H77: 15.84 | I77: 79.2 | K77: табл 6 стр 144,Дели + 2012
A78: Итого: | C78: 560.00 | F78: =F37+F40+F55+F64+F72+F77 -> 18.41 | G78: =G37+G40+G55+G64+G72+G77 -> 32.43 | H78: 73.74 | I78: 492.52 | J78: 26.11
B79: ПОЛДНИК
A80: Кисломолочный напиток | C80: 150/5 | F80: 4.35 | G80: 3.75 | H80: 10.99 | I80: 94.95 | J80: 1.05 | K80: №420 Сб дошк 2016
A81: (Кефир,ряженка,катык,напиток ацидофильный) | B81: кисломолочный напиток | D81: 155 | E81: 150
B82: сахар | D82: 5 | E82: 5
A83: Булочка дорожная | C83: 35 | F83: 2.73 | G83: 4.90 | H83: 18.25 | I83: 126.70 | K83: №453 сб дошк2016
B84: Мука пшеничная | D84: 21.35 | E84: 21.00
B85: мука пшеничная на подпыл | D85: 0.70 | E85: 0.70
B86: Сахар | D86: 4.20 | E86: 4.20
B87: Масло сливочное | D87: 4.55 | E87: 4.55
B88: соль иодированная | D88: 0.21 | E88: 0.21
B89: дрожжи сухие | D89: 0.14 | E89: 0.14
B90: вода | D90: 10.70 | E90: 10.70
B91: масса полуфабриката | E91: 39.90
B92: для крошки:
B93: мука пшеничная | D93: 0.84 | E93: 0.84
B94: масло сливочное | D94: 0.70 | E94: 0.70
B95: масса крошки | E95: 1.40
B96: масло растительное для смазки изделй | D96: 0.70 | E96: 0.70
A97: Итого: | C97: 190 | F97: =F80+F83 -> 7.08 | G97: =G80+G83 -> 8.65 | H97: 29.24 | I97: 221.65 | J97: 1.05
B98: УЖИН
A99: Пудинг рыбный | C99: 60/20 | F99: 11.23 | G99: 6.77 | H99: 8.12 | I99: 136.84 | K99: №286 СБ дошк 2016
B100: рыба (минтай с/м БГ) | D100: 63 | E100: 50.25
B101: масса отварной рыбы | E101: 39.75
B102: Хлеб пшеничный | D102: 8.25 | E102: 8.25
B103: яйцо | D103: 6.3 | E103: 5.25
B104: молоко | D104: 12 | E104: 12
B105: масло сливочное | D105: 2.25 | E105: 2.25
B106: соль иодированная | D106: 0.4 | E106: 0.4
B107: Масло растительное | D107: 1 | E107: 1
B108: масса пудинга | E108: 60
B109: Соус молочный
B110: молоко | D110: 10 | E110: 10
B111: масло сливочное | D111: 1.1 | E111: 1.1
B112: Мука пшеничная | D112: 1.1 | E112: 1.1
B113: Вода | D113: 10 | E113: 10
B114: Сахар | D114: 0.2 | E114: 0.2
B115: соль иодированная | D115: 0.13 | E115: 0.13
B116: масса соуса | E116: 20
A117: Пюре Картофельное | C117: 120 | F117: 2.46 | G117: 3.84 | H117: 16.35 | I117: 109.80 | J117: 0.20 | K117: № 339 СБ дошк 2016
B118: Картофель | D118: 136.80 | E118: 102.60
B119: Молоко | D119: 18.96 | E119: 18.00
B120: Масло сливочное | D120: 4.20 | E120: 4.20
B121: соль иодированная | D121: 0.45 | E121: 0.45
A122: Чай с сахаром | C122: 150/8 | F122: 0.04 | G122: 0.01 | H122: 6.99 | I122: 28 | J122: 0.04 | K122: №392 Дели2010
B123: чай весовой | D123: 0.4 | E123: 0.4
B124: Сахар | D124: 8 | E124: 8
B125: Вода | D125: 150 | E125: 150
A126: Хлеб пшеничный | C126: 35 | D126: 35.00 | E126: 35.00 | F126: 2.66 | G126: 0.28 | H126: 17.22 | I126: 82.25 | J126: 0.00 | K126: табл 6 стр 134,Дели + 2012
A127: Итого: | C127: 393.00 | F127: =F99+F117+F122+F126 -> 16.39 | G127: =G99+G117+G122+G126 -> 10.90 | H127: 48.68 | I127: 356.89 | J127: 0.24
A128: ВСЕГО: | C128: =C31+C35+C78+C97+C127 -> 1692.00 | F128: =F31+F35+F78+F97+F127 -> 50.95 | G128: =G31+G35+G78+G97+G127 -> 63.88 | H128: =H31+H35+H78+H97+H127 -> 213.55 | I128: =I31+I35+I78+I97+I127 -> 1462.40 | J128: =J31+J35+J78+J97+J127 -> 31.77
A130: День 2- ой
A131: Наименование блюд и | C131: Масса | D131: Кол - во | E131: Кол - во | F131: Пищевые вещества | I131: Энергетическая | J131: Витамин | K131: Сборник
A132: продуктов | C132: порции | D132: (в гр ) | E132: (в гр ) | I132: ценность | K132: рецептур
D133: брутто | E133: нетто | F133: белки | G133: жиры | H133: угл-ды | I133: Ккал | J133: С
B134: ЗАВТРАК
A135: Каша полбяная молочная с маслом сливочным | C135: 150/4 | F135: 4.20 | G135: 3.80 | H135: 18.00 | I135: 123.00 | J135: 0.16 | K135: ТТК №1Д
B136: крупа полбяная | D136: 19 | E136: 19
B137: Молоко | D137: 80 | E137: 80
B138: вода | D138: 52 | E138: 52
B139: Сахар | D139: 4 | E139: 4
B140: соль иодированная | D140: 0.8 | E140: 0.8
B141: Масло сливочное | D141: 4 | E141: 4
A142: Какао с молоком | C142: 160 | F142: 3.47 | G142: 2.99 | H142: 14.26 | I142: 97.90 | J142: 0.32 | K142: №397 Дели2010
B143: Какао-порошок | D143: 1.7 | E143: 1.7
B144: Сахар | D144: 9 | E144: 9
B145: Молоко | D145: 92 | E145: 92
B146: вода | D146: 77 | E146: 77
A147: Бутерброд с сыром, маслом сливочным | C147: 25/5/5 | F147: 3.50 | G147: 5.95 | H147: 12.90 | I147: 119.60 | J147: 0.04 | K147: №3Дели2010
B148: Батон нарезной | D148: 25 | E148: 25
B149: Сыр | D149: 5.1 | E149: 5
B150: Масло сливочное | D150: 5 | E150: 5
A151: Итого: | C151: 349 | F151: =F135+F142+F147 -> 11.17 | G151: =G135+G142+G147 -> 12.74 | H151: 45.16 | I151: 340.50 | J151: 0.52
B152: 2 - ой ЗАВТРАК
A153: Фрукты свежие | C153: 95 | D153: 108.3 | E153: 95 | F153: 0.38 | G153: 0.38 | H153: 9.31 | I153: 41.80 | J153: 9.50 | K153: №386 СБ
A154: (яблоки,или апельсин, или банан,или мандарин ) | K154: дошк.2016
A155: Итого: | C155: 95 | F155: =F153 -> 0.38 | G155: =G153 -> 0.38 | H155: 9.31 | I155: 41.80 | J155: 9.50
B156: ОБЕД
A157: Салат из картофеля с солеными огурцами | C157: 40 | F157: 0.55 | G157: 2.09 | H157: 3.43 | I157: 34.64 | J157: 4.80 | K157: №23 сб дошк2016
B158: огурцы соленые | D158: 21.84 | E158: 12.00
B159: картофель | D159: 21.92 | E159: 16.00
B160: морковь | D160: 10.24 | E160: 8.00
B161: лук репчатый | D161: 2.40 | E161: 2.00
B162: масло растительное | D162: 2.00 | E162: 2.00
A163: Борщ со свежей капустой, картофелем на мясном бульоне,со сметаной | C163: 150/6 | F163: 1.10 | G163: 3.20 | H163: 7.20 | I163: 62.00 | J163: 4.80 | K163: №110,сбшк2004
B164: Капуста свежая | D164: 15.0 | E164: 12.0
B165: Картофель | D165: 15.96 | E165: 12.0
B166: Морковь | D166: 7.5 | E166: 6.0
B167: Лук репчатый | D167: 7.14 | E167: 6.0
B168: Свекла | D168: 30.72 | E168: 24.0
B169: Сахар | D169: 1.8 | E169: 1.8
B170: Масло растительное | D170: 3.0 | E170: 3.0
B171: соль иодированная | D171: 1.5 | E171: 1.5
B172: Бульон | D172: 120 | E172: 120.0
B173: Сметана | D173: 6.0 | E173: 6.0
A174: Плов из отварной говядины | C174: 150 | F174: 11.70 | G174: 11.70 | H174: 24.00 | I174: 248.30 | J174: 0.48 | K174: №443 сбшк2004
B175: говядина б/к (лопатка) | D175: 39.00 | E175: 39.0
B176: масса вареного мяса | E176: 24.0
B177: масло сливочное | D177: 5.0 | E177: 5.0
B178: Лук репчатый | D178: 8.9 | E178: 7.5
B179: Морковь | D179: 12.5 | E179: 10.0
B180: Крупа рисовая | D180: 32.0 | E180: 32.0
B181: вода | D181: 65.0 | E181: 65.0
B182: соль иодированная | D182: 1.3 | E182: 1.3
B183: масса гарнира | E183: 126.0
A184: Кисель | C184: 150 | H184: 15.00 | I184: 60.00 | K184: №648 сбшк2004
B185: Кисель-концентрат | D185: 17.50 | E185: 17.50
B186: Сахар | D186: 7.00 | E186: 7.00
B187: вода | D187: 150.00 | E187: 150.00
A188: Хлеб ржаной | C188: 40 | D188: 40 | E188: 40 | F188: 2.64 | G188: 0.48 | H188: 15.84 | I188: 79.2 | K188: табл 6 стр 144,Дели + 2012
A189: Итого: | C189: 536 | F189: =F157+F163+F174+F184+F188 -> 15.99 | G189: =G157+G163+G174+G184+G188 -> 17.47 | H189: 65.47 | I189: 484.14 | J189: 10.08
B190: ПОЛДНИК
A191: Кисломолочный напиток | C191: 150 | F191: 4.35 | G191: 3.75 | H191: 6.30 | I191: 76.00 | J191: 0.45 | K191: №420 Сб дошк 2016
A192: (кефир,ряженка,катык,напиток ацидофильный) | B192: кисломолочный напиток | D192: 155 | E192: 150
A193: Итого: | C193: 150 | F193: =F191 -> 4.35 | G193: =G191 -> 3.75 | H193: 6.30 | I193: 76.00 | J193: 0.45
B194: УЖИН
A195: Запеканка творожная с повидлом | C195: 110/20 | F195: 19.37 | G195: 13.26 | H195: 31.87 | I195: 321.70 | J195: 0.36 | K195: № 251 сб дошк 2016
B196: Творог | D196: 103.2 | E196: 101.2
B197: крупа манная | D197: 6.6 | E197: 6.6
B198: Яйцо | D198: 5.28 | E198: 4.4
B199: Сахар | D199: 8.8 | E199: 8.8
B200: Сметана | D200: 4.4 | E200: 4.4
B201: Масло сливочное | D201: 4.4 | E201: 4.4
B202: Сухари панировочные | D202: 4.4 | E202: 4.4
B203: соль иодированная | D203: 0.55 | E203: 0.55
B204: повидло | D204: 20 | E204: 20
A205: Чай с сахаром и лимоном | C205: 150/8/5 | F205: 0.07 | G205: 0.01 | H205: 7.10 | I205: 29.00 | J205: 1.60 | K205: №393 Дели2010
... 889 more rows
